fUST/lending_fUST_20251226
["ID","MTS","AMOUNT","RATE_DAILY","PERIOD"]
[399815734,1766698238987,-500.0,6.57e-05,2]
[399815735,1766698238997,-500.0,6.57e-05,2]
[399815736,1766698239007,-500.0,6.57e-05,2]
[399815737,1766698239017,-500.0,6.57e-05,2]
[399815738,1766698239027,-500.0,6.57e-05,2]
[399815739,1766698239037,-500.0,6.57e-05,2]
[399815740,1766698239047,-500.0,6.57e-05,2]
[399815741,1766698239059,-500.0,6.57e-05,2]
[399815742,1766698239069,-500.0,6.57e-05,2]
[399815743,1766698239079,-500.0,6.57e-05,2]
[399815744,1766698239089,-500.0,6.57e-05,2]
[399815745,1766698239099,-500.0,6.57e-05,2]
[399815746,1766698239110,-500.0,6.57e-05,2]
[399815747,1766698239121,-500.0,6.57e-05,2]
[399815748,1766698239141,-195.93547121,6.57e-05,2]
[399815749,1766698239151,-847.4410467,6.572e-05,2]
[399815750,1766698239161,-177.0,7.097e-05,2]
[399815751,1766698239171,-27057.7051239,8.647e-05,2]
[399815752,1766698239181,-175.39952766,9.097e-05,2]
[399815753,1766698239191,-500.0,0.00010959,2]
[399815754,1766698239201,-639.14824809,0.00010959,2]
[399815755,1766698239211,-1041.66666667,0.00012676,2]
[399815756,1766698239222,-168.0,0.00012932,3]
[399815757,1766698239232,-1124.808641,0.00013699,2]
[399815758,1766698239241,-886.0,0.0001791,2]
[399815759,1766698239252,-886.0,0.00017944,2]
[399815760,1766698239261,-886.0,0.00017949,2]
[399815761,1766698239271,-886.0,0.00018022,2]
[399815762,1766698239281,-886.0,0.00018039,2]
[399815763,1766698239290,-886.0,0.00018159,2]
[399815764,1766698239300,-160.0,0.000182,2]
[399815765,1766698239310,-375.9919914,0.00018219,2]
[399815766,1766698239319,-375.9919914,0.00018219,2]
[399815767,1766698239329,-886.0,0.00018241,2]
[399815768,1766698239338,-380.1259554,0.00018274,2]
[399815769,1766698239348,-886.0,0.0001836,2]
[399815770,1766698239357,-886.0,0.00018379,2]
[399815771,1766698239367,-886.0,0.00018476,2]
[399815772,1766698239377,-886.0,0.00018616,2]
[399815773,1766698239387,-886.0,0.00018628,2]
[399815774,1766698239397,-886.0,0.00018705,2]
[399815775,1766698239407,-260.0,0.00018748,2]
[399815776,1766698239417,-886.0,0.00018782,2]
[399815777,1766698239427,-302.96970909,0.000189,2]
[399815778,1766698239436,-302.96970909,0.000189,2]
[399815779,1766698239446,-886.0,0.0001895,2]
[399815780,1766698239456,-598.9812996,0.00018959,2]
[399815781,1766698239466,-598.9812996,0.00018959,2]
[399815782,1766698239475,-598.9812996,0.00018959,2]
[399815783,1766698239485,-10000.0,0.00018988,2]
[399815784,1766698239494,-100000.0,0.0001899,2]
[399815785,1766698239503,-302.96970909,0.00019089,2]
[399815786,1766698239514,-302.96970909,0.00019089,2]
[399815787,1766698239523,-886.0,0.00019146,2]
[399815788,1766698239532,-886.0,0.00019156,2]
[399815789,1766698239542,-200.0,0.00019178,5]
[399815790,1766698239551,-886.0,0.00019194,2]
[399815791,1766698239561,-166.2,0.000192,2]
[399815792,1766698239570,-886.0,0.00019226,2]
[399815793,1766698239579,-886.0,0.00019242,2]
[399815794,1766698239589,-886.0,0.00019252,2]
[399815795,1766698239598,-886.0,0.00019277,2]
[399815796,1766698239607,-302.96970909,0.00019278,2]
[399815797,1766698239617,-302.96970909,0.00019278,2]
[399815798,1766698239627,-360.0,0.00019296,2]
[399815799,1766698239637,-1212.7111758,0.00019337,2]
[399815800,1766698239647,-886.0,0.0001936,2]
[399815801,1766698239657,-302.9931996,0.00019397,2]
[399815802,1766698239666,-302.9931996,0.00019397,2]
[399815803,1766698239676,-302.9931996,0.00019397,2]
[399815804,1766698239685,-302.9931996,0.00019397,2]
[399815805,1766698239694,-886.0,0.000194,2]
[399815806,1766698239704,-400.91323188,0.00019404,2]
[399815807,1766698239713,-886.0,0.00019443,2]
[399815808,1766698239723,-445.4336068,0.00019452,2]
[399815809,1766698239732,-302.96970909,0.00019467,2]
[399815810,1766698239742,-302.96970909,0.00019467,2]
[399815811,1766698239751,-302.96970909,0.00019656,2]
[399815812,1766698239761,-302.96970909,0.00019656,2]
[399815813,1766698239771,-1201.501869,0.0001976,5]
[399815814,1766698239780,-1000.0,0.0001978,5]
[399815815,1766698239790,-1144.15272609,0.000198,30]
[399815816,1766698239800,-412.47,0.000198,2]
[399815817,1766698239810,-5000.0,0.000198,30]
[399815818,1766698239819,-2064.73,0.000198,30]
[399815819,1766698239830,-5000.0,0.000198,30]
[399815820,1766698239839,-5000.0,0.000198,30]
[399815821,1766698239849,-5000.0,0.000198,30]
[399815822,1766698239859,-1000.0,0.000198,5]
[399815823,1766698239868,-175.722713,0.000198,2]
[399815824,1766698239877,-175.722713,0.000198,2]
[399815825,1766698239887,-175.722713,0.000198,2]
[399815826,1766698239896,-175.722713,0.000198,2]
[399815827,1766698239906,-1000.0,0.0001982,5]
[399815828,1766698239915,-1000.0,0.0001984,5]
[399815829,1766698239925,-460.0,0.00019844,2]
[399815830,1766698239934,-454.45456363,0.00019845,4]
[399815831,1766698239943,-454.45456363,0.00019845,4]
[399815832,1766698239953,-1000.0,0.0001986,5]
[399815833,1766698239963,-1000.0,0.0001988,5]
[399815834,1766698239973,-1000.0,0.000199,5]
[399815835,1766698239982,-1000.0,0.0001992,5]
[399815836,1766698239991,-1000.0,0.0001994,5]
[399815837,1766698240000,-1000.0,0.0001996,5]
[399815838,1766698240011,-1811.172472,0.0001998,5]
[399815839,1766698240020,-1000.0,0.0001998,5]
[399815840,1766698240030,-6583.418623,0.0001999,2]
[399815841,1766698240039,-6583.418623,0.0001999,2]
[399815842,1766698240048,-6583.418623,0.0001999,2]
[399815843,1766698240061,-6583.418623,0.0001999,2]
[399815844,1766698240071,-953.0,0.0002,2]
[399815845,1766698240081,-1278.0,0.0002,2]
[399815846,1766698240090,-194.30310787,0.0002,2]
[399815847,1766698240100,-204.80214012,0.0002,2]
[399815848,1766698240110,-1078.0,0.0002,2]
[399815849,1766698240120,-370.69614595,0.0002,2]
[399815850,1766698240131,-23000.0,0.0002,2]
[399815851,1766698240140,-5611.72,0.0002,15]
[399815852,1766698240150,-13144.91067929,0.0002,2]
[399815854,1766698240164,-252.27454861,0.0002,2]
[399815856,1766698240175,-438.41934811,0.0002,2]
[399815858,1766698240187,-4068.56124263,0.0002,2]
[399815860,1766698240196,-13940.69775935,0.0002,2]
[399815894,1766698240506,-724.02457237,0.0002,2]
[399815896,1766698240516,-150.0,0.0002,2]
[399815898,1766698240526,-3695.0,0.0002,2]
[399815900,1766698240535,-3892.90547206,0.0002,2]
[399815902,1766698240545,-547.05471109,0.0002,2]
[399815904,1766698240554,-202.20436646,0.0002,2]
[399815906,1766698240564,-503.10627973,0.0002,2]
[399815908,1766698240574,-1063.0,0.0002,2]
[399815910,1766698240583,-1106.0,0.0002,2]
[399815912,1766698240592,-279.11585283,0.0002,2]
[399815914,1766698240602,-300.0,0.0002,30]
[399815916,1766698240611,-1044.0,0.0002,2]
[399815918,1766698240621,-221.0,0.0002,2]
[399815920,1766698240631,-207.0,0.0002,10]
[399815922,1766698240641,-1059.0,0.0002,2]
[399815924,1766698240650,-4927.26919508,0.0002,2]
[399816302,1766698246485,-3405.66973687,0.00019998,2]
[399816322,1766698512492,195.0,0.0001938,120]
[399816323,1766698513753,195.0,0.00020349,120]
[399816324,1766698515014,195.0,0.00021366,120]
[399816325,1766698516317,195.0,0.00022435,120]
[399816326,1766698517844,195.0,0.00023557,120]
[399816327,1766698519084,195.0,0.00024734,120]
[399816328,1766698520336,195.0,0.00025971,120]
[399816329,1766698521623,195.0,0.0002727,120]
[399816330,1766698522926,195.0,0.00028633,120]
[399816331,1766698524179,195.0,0.00030065,120]
[399816332,1766698528927,175.0,0.00018452,120]
[399816333,1766698743885,324.0,0.0002,120]
[399816334,1766698746137,216.0,0.00022,120]
[399816369,1766699432639,-5000.0,6.246e-05,10]
[399816370,1766699432651,-510.0,6.325e-05,2]
[399816371,1766699432661,-150.0,6.325e-05,2]
[399816372,1766699432672,-300.0,6.56e-05,2]
[399816373,1766699432682,-1200.0,6.56e-05,2]
[399816374,1766699432692,-1200.0,6.561e-05,2]
[399816375,1766699432702,-500.0,6.561e-05,2]
[399816376,1766699432712,-500.0,6.561e-05,2]
[399816377,1766699432723,-500.0,6.561e-05,2]
[399816378,1766699432732,-645.09345932,6.561e-05,2]
[399816379,1766699432743,-500.0,6.561e-05,2]
[399816380,1766699432753,-500.0,6.561e-05,2]
[399816381,1766699432763,-500.0,6.561e-05,2]
[399816382,1766699432774,-500.0,6.561e-05,2]
[399816383,1766699432784,-500.0,6.561e-05,2]
[399816384,1766699432794,-500.0,6.561e-05,2]
[399816385,1766699432804,-182.10436891,6.561e-05,2]
[399816386,1766699432813,-500.0,6.561e-05,2]
[399816387,1766699432823,-500.0,6.561e-05,2]
[399816388,1766699432833,-500.0,6.561e-05,2]
[399816389,1766699432843,-500.0,6.561e-05,2]
[399816390,1766699432854,-500.0,6.561e-05,2]
[399816391,1766699432864,-500.0,6.561e-05,2]
[399816392,1766699432875,-500.0,6.561e-05,2]
[399816393,1766699432885,-500.0,6.561e-05,2]
[399816394,1766699432895,-500.0,6.561e-05,2]
[399816395,1766699432906,-500.0,6.561e-05,2]
[399816396,1766699432921,-500.0,6.561e-05,2]
[399816397,1766699432932,-500.0,6.561e-05,2]
[399816398,1766699432943,-500.0,6.561e-05,2]
[399816399,1766699432954,-500.0,6.561e-05,2]
[399816400,1766699432965,-500.0,6.561e-05,2]
[399816401,1766699432976,-500.0,6.561e-05,2]
[399816402,1766699432987,-500.0,6.561e-05,2]
[399816403,1766699432999,-500.0,6.561e-05,2]
[399816404,1766699433009,-500.0,6.561e-05,2]
[399816405,1766699433020,-500.0,6.561e-05,2]
[399816406,1766699433031,-500.0,6.561e-05,2]
[399816407,1766699433042,-500.0,6.561e-05,2]
[399816408,1766699433052,-420.38982784,6.561e-05,2]
[399816409,1766699433062,-500.0,6.561e-05,2]
[399816410,1766699433074,-500.0,6.561e-05,2]
[399816411,1766699433085,-500.0,6.561e-05,2]
[399816412,1766699433095,-500.0,6.561e-05,2]
[399816413,1766699433106,-500.0,6.561e-05,2]
[399816414,1766699433117,-500.0,6.561e-05,2]
[399816415,1766699433127,-500.0,6.561e-05,2]
[399816416,1766699433138,-500.0,6.561e-05,2]
[399816417,1766699433148,-500.0,6.561e-05,2]
[399816418,1766699433158,-500.0,6.561e-05,2]
[399816419,1766699433169,-500.0,6.561e-05,2]
[399816420,1766699433180,-500.0,6.561e-05,2]
[399816421,1766699433190,-500.0,6.561e-05,2]
[399816422,1766699433201,-500.0,6.561e-05,2]
[399816423,1766699433211,-500.0,6.561e-05,2]
[399816424,1766699433222,-500.0,6.561e-05,2]
[399816425,1766699433233,-500.0,6.561e-05,2]
[399816426,1766699433243,-500.0,6.561e-05,2]
[399816427,1766699433253,-500.0,6.561e-05,2]
[399816428,1766699433264,-500.0,6.561e-05,2]
[399816429,1766699433275,-500.0,6.561e-05,2]
[399816430,1766699433285,-500.0,6.561e-05,2]
[399816431,1766699433295,-500.0,6.561e-05,2]
[399816432,1766699433306,-500.0,6.561e-05,2]
[399816433,1766699433316,-500.0,6.561e-05,2]
[399816434,1766699433327,-500.0,6.561e-05,2]
[399816435,1766699433338,-500.0,6.561e-05,2]
[399816436,1766699433350,-500.0,6.561e-05,2]
[399816437,1766699433361,-500.0,6.561e-05,2]
[399816438,1766699433371,-500.0,6.561e-05,2]
[399816439,1766699433382,-500.0,6.561e-05,2]
[399816440,1766699433392,-500.0,6.561e-05,2]
[399816441,1766699433403,-500.0,6.561e-05,2]
[399816442,1766699433413,-71.53147378,6.561e-05,2]
[399816443,1766699433433,-428.46852622,6.561e-05,2]
[399816444,1766699433443,-500.0,6.561e-05,2]
[399816445,1766699433453,-500.0,6.561e-05,2]
[399816446,1766699433464,-500.0,6.561e-05,2]
[399816447,1766699433474,-500.0,6.561e-05,2]
[399816448,1766699433486,-500.0,6.561e-05,2]
[399816449,1766699433497,-500.0,6.561e-05,2]
[399816450,1766699433508,-500.0,6.561e-05,2]
[399816451,1766699433518,-500.0,6.561e-05,2]
[399816452,1766699433530,-500.0,6.561e-05,2]
[399816453,1766699433540,-500.0,6.561e-05,2]
[399816454,1766699433550,-500.0,6.561e-05,2]
[399816455,1766699433561,-500.0,6.561e-05,2]
[399816456,1766699433576,-500.0,6.561e-05,2]
[399816457,1766699433587,-500.0,6.561e-05,2]
[399816458,1766699433598,-500.0,6.561e-05,2]
[399816459,1766699433608,-500.0,6.561e-05,2]
[399816460,1766699433619,-500.0,6.561e-05,2]
[399816461,1766699433630,-359.75739327,6.561e-05,2]
[399816959,1766699438864,-140.24260673,6.561e-05,2]
[399816961,1766699438875,-500.0,6.561e-05,2]
[399816963,1766699438886,-500.0,6.561e-05,2]
[399816965,1766699438897,-500.0,6.561e-05,2]
[399816967,1766699438908,-59.17634699,6.561e-05,2]
[399816969,1766699438922,-440.82365301,6.561e-05,2]
[399816971,1766699438933,-500.0,6.561e-05,2]
[399816973,1766699438944,-252.21969908,6.561e-05,2]
[399816975,1766699438956,-500.0,6.561e-05,2]
[399816977,1766699438967,-500.0,6.561e-05,2]
[399816980,1766699438978,-500.0,6.561e-05,2]
[399816982,1766699438988,-500.0,6.561e-05,2]
[399816984,1766699438999,-500.0,6.561e-05,2]
[399816986,1766699439010,-500.0,6.561e-05,2]
[399816988,1766699439021,-500.0,6.561e-05,2]
[399816990,1766699439032,-500.0,6.561e-05,2]
[399816992,1766699439043,-500.0,6.561e-05,2]
[399816994,1766699439055,-500.0,6.561e-05,2]
[399816997,1766699439067,-500.0,6.561e-05,2]
[399816999,1766699439078,-500.0,6.561e-05,2]
[399817001,1766699439089,-177.0,8.325e-05,2]
[399817003,1766699439101,-157.51003662,0.00010325,2]
[399817005,1766699439113,-155.0,0.00012986,3]
[399817007,1766699439124,-613.9118386,0.00013699,2]
[399817009,1766699439135,-303.00000303,0.000189,2]
[399817011,1766699439147,-302.96970909,0.000189,2]
[399817013,1766699439158,-183.0809251,0.00018978,2]
[399817015,1766699439170,-533.88981492,0.00018979,2]
[399817018,1766699439181,-151.0,0.00018979,2]
[399817020,1766699439193,-500.0,0.00018979,2]
[399817021,1766699439204,-500.0,0.00018979,2]
[399817023,1766699439216,-151.0,0.00018979,2]
[399817041,1766699439487,-151.0,0.00018979,2]
[399817043,1766699439508,-500.0,0.00018979,2]
[399817045,1766699439519,-546.06754988,0.00018979,2]
[399817046,1766699439528,-151.0,0.00018979,2]
[399817048,1766699439537,-151.0,0.00018979,2]
[399817050,1766699439548,-151.0,0.00018979,2]
[399817051,1766699439557,-151.0,0.00018979,2]
[399817053,1766699439567,-272.33378873,0.00018979,2]
[399817055,1766699439577,-500.0,0.00018985,2]
[399817056,1766699439587,-500.0,0.00018985,2]
[399817058,1766699439597,-536.62142344,0.00018985,2]
[399817059,1766699439606,-226.63763861,0.00018985,2]
[399817061,1766699439616,-500.0,0.00018985,2]
[399817063,1766699439626,-500.0,0.00018985,2]
[399817065,1766699439636,-10000.0,0.00018988,2]
[399817066,1766699439646,-59776.36119827,0.0001899,2]
[399817068,1766699439660,-3607.13921305,0.0001899,2]
[399817070,1766699439672,-36616.49958868,0.0001899,2]
[399817072,1766699439682,-598.9812996,0.00019078,2]
[399817074,1766699439692,-303.00000303,0.00019089,2]
[399817075,1766699439702,-302.96970909,0.00019089,2]
[399817077,1766699439711,-598.9812996,0.00019178,2]
[399817079,1766699439721,-446.39,0.000192,2]
[399817081,1766699439730,-303.00000303,0.00019278,2]
[399817082,1766699439740,-302.96970909,0.00019278,2]
[399817084,1766699439751,-303.00000303,0.00019467,2]
[399817086,1766699439763,-302.96970909,0.00019467,2]
[399817087,1766699439772,-160.0,0.000195,2]
[399817089,1766699439782,-267.27548792,0.000196,2]
[399817091,1766699439791,-303.00000303,0.00019656,2]
[399817093,1766699439800,-302.96970909,0.00019656,2]
[399817094,1766699439811,-159.06676452,0.000198,2]
[399817096,1766699439821,-454.50000455,0.00019845,4]
[399817098,1766699439830,-454.45456363,0.00019845,4]
[399817100,1766699439840,-1600.750935,0.0001986,5]
[399817101,1766699439854,-1000.0,0.0001988,5]
[399817103,1766699439864,-113848.55757121,0.000199,2]
[399817164,1766699440746,-454.43482302,0.00018986,10]
[399817264,1766699443932,-767.93983771,0.00018986,10]
[399817266,1766699443944,-297.11783479,0.00018986,10]
[399817272,1766699444000,-617.75813813,0.00018986,10]
[399817298,1766699446768,-420.07,0.00018986,10]
[399817299,1766699446914,-2442.67936635,0.00018986,10]
[399817300,1766699446924,-6215.03496512,0.000199,2]
[399817302,1766699574573,290.381928,0.00030137,120]
[399817304,1766699751663,150.27,0.000328,120]
[399817308,1766700339386,5778.0,0.0003287,120]
[399817328,1766700631739,-294.49516258,0.00013699,2]
[399817331,1766700631753,-517.26601179,0.00013699,2]
[399817363,1766700637680,-256.80703363,0.00013699,2]
[399817364,1766700637696,-40.28070494,0.00013699,2]
[399817365,1766700637794,-574.71929506,0.00013699,2]
[399817366,1766700637805,-229.94755005,0.00016446,2]
[399817367,1766700637816,-229.94755005,0.00016471,2]
[399817368,1766700637826,-196.71623782,0.00016496,2]
[399817369,1766700637841,-33.23131223,0.00016496,2]
[399817370,1766700637851,-270.97825043,0.0001652,2]
[399817383,1766700640092,-29.02174957,0.0001652,2]
[399817384,1766700640102,-1076.0,0.0001652,2]
[399817385,1766700640112,-728.31994285,0.00016521,2]
[399817386,1766700640124,-8582.27852643,0.00016521,2]
[399817387,1766700640134,-21271.34492237,0.00016621,2]
[399817388,1766700640144,-3724.89054401,0.00016621,2]
[399817389,1766700640154,-158.38982472,0.00016921,2]
[399817390,1766700640164,-213.0,0.00018052,2]
[399817391,1766700640173,-349.45482881,0.00018195,2]
[399817392,1766700640183,-511.05866099,0.00018195,2]
[399817393,1766700640192,-500.0,0.00018195,2]
[399817394,1766700640203,-500.0,0.00018195,2]
[399817395,1766700640212,-500.0,0.00018195,2]
[399817396,1766700640222,-500.0,0.00018195,2]
[399817397,1766700640232,-500.0,0.00018195,2]
[399817398,1766700640241,-500.0,0.00018195,2]
[399817399,1766700640252,-542.03898278,0.00018195,2]
[399817400,1766700640262,-500.0,0.00018195,2]
[399817401,1766700640272,-211.53430242,0.00018195,2]
[399817402,1766700640282,-1200.0,0.00018195,2]
[399817403,1766700640292,-20979.73153059,0.00018197,2]
[399817404,1766700640302,-161.295249,0.00018874,2]
[399817405,1766700640311,-303.00000303,0.000189,2]
[399817406,1766700640327,-302.96970909,0.000189,2]
[399817407,1766700640336,-533.88981491,0.00018979,2]
[399817408,1766700640346,-151.0,0.00018979,2]
[399817409,1766700640356,-151.0,0.00018979,2]
[399817410,1766700640366,-151.0,0.00018979,2]
[399817411,1766700640376,-151.0,0.00018979,2]
[399817412,1766700640386,-151.0,0.00018979,2]
[399817413,1766700640395,-151.0,0.00018979,2]
[399817414,1766700640407,-151.0,0.00018979,2]
[399817415,1766700640417,-151.0,0.00018979,2]
[399817416,1766700640426,-151.0,0.00018979,2]
[399817417,1766700640436,-151.0,0.00018979,2]
[399817418,1766700640445,-151.0,0.00018979,2]
[399817419,1766700640455,-151.0,0.00018979,2]
[399817420,1766700640464,-278.19800399,0.00018979,2]
[399817421,1766700640474,-160.0,0.00018989,2]
[399817422,1766700640486,-7711.64454495,0.0001899,2]
[399817423,1766700640497,-4990.0,0.0001899,2]
[399817424,1766700640509,-30020.60057843,0.0001899,2]
[399817433,1766700642858,-153.29836671,0.00016421,2]
[399817434,1766700642874,-153.2983667,0.00016471,2]
[399817435,1766700642886,-153.2983667,0.00016521,2]
[399817436,1766700642898,-500.0,0.00018978,2]
[399817437,1766700642911,-500.0,0.00018978,2]
[399817438,1766700642923,-535.510243,0.00018978,2]
[399817439,1766700642935,-85.34465732,0.00018978,2]
[399817440,1766700642966,-414.65534268,0.00018978,2]
[399817441,1766700642976,-218.56912228,0.00018978,2]
[399817442,1766700642987,-500.0,0.00018978,2]
[399817443,1766700642997,-1141.72793504,0.0001899,2]
[399817444,1766700643024,-2748.4039686,0.0001899,2]
[399817448,1766700645795,-868.82247036,0.0001899,2]
[399817449,1766700645852,-24286.91235771,0.0001899,2]
[399817450,1766700645863,-303.00000303,0.00019089,2]
[399817451,1766700645875,-302.96970909,0.00019089,2]
[399817452,1766700645887,-303.00000303,0.00019278,2]
[399817453,1766700645898,-302.96970909,0.00019278,2]
[399817454,1766700645909,-303.00000303,0.00019467,2]
[399817455,1766700645920,-302.96970909,0.00019467,2]
[399817456,1766700645930,-260.0,0.00019537,2]
[399817457,1766700645941,-178.18365862,0.000196,2]
[399817458,1766700645952,-303.00000303,0.00019656,2]
[399817459,1766700645963,-302.96970909,0.00019656,2]
[399817460,1766700645975,-561.05828121,0.00019665,2]
[399817461,1766700645987,-10000.0,0.00019798,2]
[399817462,1766700645998,-271980.73786676,0.000198,2]
[399817463,1766700646011,-15541.48327209,0.000198,2]
[399817464,1766700646025,-12619.73687412,0.000198,2]
[399817465,1766700646039,-3888.39557336,0.000198,2]
[399817467,1766700712211,156.50653844,0.00025829,120]
[399817504,1766701831879,-636.52832038,0.00015461,2]
[399817505,1766701831890,-398.12422043,0.00015561,2]
[399817507,1766701831902,-645.0,0.00015561,2]
[399817508,1766701831911,-5000.0,0.00015632,10]
[399817509,1766701831921,-241.9430307,0.00015661,2]
[399817510,1766701831931,-1141.72793504,0.0001599,2]
[399817511,1766701831941,-300.0,0.0001672,2]
[399817512,1766701831952,-162.69686531,0.00016721,2]
[399817513,1766701831961,-27581.86529068,0.00016721,2]
[399817514,1766701831975,-858.12873,0.00016721,2]
[399817520,1766701837899,-500.0,0.0001672,2]
[399817521,1766701837909,-500.0,0.0001672,2]
[399817522,1766701837919,-542.96572509,0.0001672,2]
[399817523,1766701837929,-224.8571701,0.0001672,2]
[399817524,1766701837939,-500.0,0.0001672,2]
[399817525,1766701837949,-245.7260336,0.0001672,2]
[399817526,1766701837959,-226.89322031,0.0001672,2]
[399817527,1766701837969,-19579.77450086,0.00016721,2]
[399817528,1766701837981,-1501.08898084,0.00016721,2]
[399817529,1766701837992,-1393.66700258,0.00016721,2]
[399817530,1766701838004,-300.64585245,0.00016721,2]
[399817531,1766701838016,-1417.25,0.00016721,2]
[399817532,1766701838028,-26029.62281837,0.00016721,2]
[399817533,1766701838042,-2870.45479817,0.00016721,2]
[399817538,1766701840088,-1144.60886202,0.00016721,2]
[399817539,1766701840103,-3886.74185346,0.00016721,2]
[399817563,1766701846103,-14954.61359302,0.00016721,2]
[399817564,1766701846116,-20568.08679901,0.00016721,2]
[399817566,1766702482448,217.786446,0.00030137,120]
[399817599,1766703031959,-5000.0,0.00013562,10]
[399817601,1766703031969,-614.0,0.0001363,2]
[399817603,1766703031979,-235.68441514,0.0001363,2]
[399817605,1766703031988,-1015.139797,0.00013699,2]
[399817607,1766703031999,-161.295249,0.00015554,2]
[399817609,1766703032008,-1186.0,0.00016304,2]
[399817611,1766703032018,-300.0,0.00016619,2]
[399817613,1766703032027,-300.0,0.00016619,2]
[399817615,1766703032040,-170.24708159,0.0001662,2]
[399817617,1766703032050,-500.0,0.0001662,2]
[399817619,1766703032060,-500.0,0.0001662,2]
[399817621,1766703032070,-500.0,0.0001662,2]
[399817623,1766703032079,-526.38779958,0.0001662,2]
[399817625,1766703032089,-241.10207194,0.0001662,2]
[399817627,1766703032099,-500.0,0.0001662,2]
[399817628,1766703032109,-500.0,0.0001662,2]
[399817629,1766703032119,-500.0,0.0001662,2]
[399817631,1766703032129,-550.4803996,0.0001662,2]
[399817633,1766703032138,-500.0,0.0001662,2]
[399817635,1766703032148,-500.0,0.0001662,2]
[399817637,1766703032158,-500.0,0.0001662,2]
[399817639,1766703032168,-500.0,0.0001662,2]
[399817641,1766703032178,-399.15578038,0.0001662,2]
[399817643,1766703032187,-30910.281922,0.00016621,2]
[399817645,1766703032199,-318.62455213,0.00016621,2]
[399817703,1766703038204,-606.33299742,0.00016621,2]
[399817706,1766703038220,-3235.80792217,0.00016621,2]
[399817707,1766703038232,-4589.31435624,0.00016621,2]
[399818109,1766703046172,-437.9,0.00016621,2]
[399818123,1766703074802,1000.0,0.0003,120]
[399818125,1766703110901,3000.0,0.00032,120]
[399818126,1766703127023,500.0,0.00032876,120]
[399818127,1766703137442,1863.53494113,0.00032,120]
[399818129,1766703331368,158.0,0.00032877,120]
[399818145,1766703566880,185.56084803,0.00032876,120]
[399818154,1766703711153,488.29,0.00032876,120]
[399818413,1766704232174,-1200.0,0.00016518,2]
[399818414,1766704232185,-1200.0,0.00016519,2]
[399818415,1766704232195,-300.0,0.00016519,2]
[399818416,1766704232205,-661.0,0.00016519,2]
[399818417,1766704232215,-300.0,0.00016519,2]
[399818418,1766704232225,-13638.93134782,0.0001652,2]
[399818419,1766704232235,-500.0,0.0001652,2]
[399818420,1766704232246,-500.0,0.0001652,2]
[399818421,1766704232256,-218.4714597,0.0001652,2]
[399818422,1766704232265,-500.0,0.0001652,2]
[399818423,1766704232275,-218.70352379,0.0001652,2]
[399818424,1766704232286,-449.53794756,0.0001652,2]
[399818425,1766704232296,-363.69293324,0.0001652,2]
[399818426,1766704232307,-500.0,0.0001652,2]
[399818427,1766704232318,-500.0,0.0001652,2]
[399818428,1766704232328,-537.22002447,0.0001652,2]
[399818429,1766704232337,-22679.66653872,0.00016521,2]
[399818430,1766704232450,-15804.78999067,0.00016521,2]
[399818431,1766704232462,-619.84912104,0.00016521,2]
[399818432,1766704232475,-1660.07122545,0.00016521,2]
[399818433,1766704232486,-884.15366601,0.00016521,2]
[399818613,1766704238485,-1022.51539554,0.00016521,2]
[399819017,1766704243822,-388.51668446,0.00016521,2]
[399819109,1766704246378,-1193.04204741,0.00016521,2]
[399820381,1766704374317,150.0,9e-07,2]
[399820395,1766704375338,150.0,9e-07,2]
[399820409,1766704376474,150.0,9e-07,2]